Cogmind - Beta 9.6 --- EXPLORER MODE // 2020.08.28 @ 02:43:22 Player: Judas Result: Destroyed by G-73 Enforcer with Phase Gun Performance ------------- Evolutions (7) 3500 Regions Visited (15) 3000 Robots Destroyed (130) 650 Value Destroyed (6651) 6651 Prototype IDs (26) 520 Alien Tech Used (1) 200 Bonus (5999) 5999 TOTAL SCORE: 20520 Bonus ------- Triggered Max Security 1000 High Alert Combat Kills 592 Follower Combat Kills 523 Aligned with FarCom 300 Met Warlord at Base 500 MAIN.C Attacked Warlord 500 Warlord Defense Kill 2162 Scanned by Researcher 500 Friendly Fire -78 Cogmind --------- Core Integrity 0/1300 Matter 80/300 Energy 58/100 System Corruption 10% Temperature Cool (9) Movement Core (100) Ox1 Location -3/Quarantine Parts ------- > --- POWER (2) -------- (None) > --- PROPULSION (5) --- (None) > --- UTILITY (11) ----- Experimental Optical Array > --- WEAPON (4) ------- Force Lance > --- INVENTORY (4) ---- (None) Peak State ------------ > --- POWER ------------ Particle Reactor Light Quantum Reactor > --- PROPULSION ------- Medium Treads Heavy Siege Treads Advanced Heavy Treads > --- UTILITY ---------- Advanced Heat Sink Advanced Heat Sink Advanced Cooling System Medium Storage Unit Medium Storage Unit Experimental Optical Array Advanced Target Analyzer Advanced Core Analyzer Makeshift Armor Plating Matter Drive > --- WEAPON ----------- Railgun Hypervelocity Railgun Linear Accelerator Compact Mass Driver > --- INVENTORY -------- Particle Reactor HERF Cannon HERF Cannon HERF Cannon Railgun Linear Accelerator Remote Datajack Force Lance [Rating: 160] Favorites ----------- Power Light Antimatter Reactor Engine Ion Engine Power Core Micro Fission Core Reactor Light Antimatter Reactor Propulsion Improved Titanium Leg Treads Armored Medium Treads Leg Improved Titanium Leg Wheel Armored Huge Wheel Utility Medium Storage Unit Device Advanced Heat Sink Storage Medium Storage Unit Processor Advanced Target Analyzer Protection Makeshift Armor Plating Artifact Matter Drive Weapon Coil Gun Energy Gun Medium Laser Energy Cannon HERF Cannon Ballistic Gun Coil Gun Ballistic Cannon Linear Accelerator Launcher Proton Missile Launcher Special Weapon Field Lobotomy Kit Slashing Weapon Power Sword Piercing Weapon Force Lance Build | -11 -10 -10 -10 -9 -8 -7 -6 -5 -4 -4 -4 -4 -3 -3 -3 ------- Run | Scr Mat Min Exi Min Mat Fac Fac Fac Fac Upp Upp War Pro Res Qua Slots Evolved 15 | . 1 . . . 4 2 2 2 2 . . . . 2 . Power 1 | . . . . . . . . 1 . . . . . . . Propulsion 3 | . . . . . 1 1 . . . . . . . 1 . Utility 9 | . 1 . . . 2 1 1 1 2 . . . . 1 . Weapon 2 | . . . . . 1 . 1 . . . . . . . . Parts Attached 184 | 2 13 . . . 9 15 4 23 19 4 3 27 18 36 11 Power 33 | . 4 . . . 2 2 . 6 2 . 2 6 4 4 1 Engine 11 | . 4 . . . 2 2 . 3 . . . . . . . Core 4 | . . . . . . . . 3 . . . . 1 . . Reactor 18 | . . . . . . . . . 2 . 2 6 3 4 1 Propulsion 40 | . 5 . . . 2 7 . 2 6 1 1 7 2 5 2 Treads 15 | . . . . . . . . . . . . 6 2 5 2 Leg 24 | . 5 . . . 2 7 . 2 6 1 1 . . . . Wheel 1 | . . . . . . . . . . . . 1 . . . Hover . | . . . . . . . . . . . . . . . . Flight . | . . . . . . . . . . . . . . . . Utility 44 | 1 2 . . . 4 2 3 6 7 . . 6 4 8 1 Device 22 | . . . . . 2 1 3 3 4 . . 5 1 3 . Storage 6 | . 1 . . . . 1 . . . . . 1 1 2 . Processor 11 | 1 . . . . . . . 3 3 . . . 1 3 . Hackware . | . . . . . . . . . . . . . . . . Protection 4 | . 1 . . . 2 . . . . . . . 1 . . Artifact 1 | . . . . . . . . . . . . . . . 1 Weapon 67 | 1 2 . . . 1 4 1 9 4 3 . 8 8 19 7 Energy Gun 3 | 1 1 . . . . 1 . . . . . . . . . Energy Cannon 10 | . . . . . . . . 2 . . . . 1 4 3 Ballistic Gun 26 | . 1 . . . 1 2 . 3 4 2 . 2 3 7 1 Ballistic Cannon 13 | . . . . . . 1 1 2 . . . 4 . 4 1 Launcher 3 | . . . . . . . . . . . . 2 . 1 . Special Weapon 7 | . . . . . . . . . . 1 . . 2 3 1 Impact Weapon . | . . . . . . . . . . . . . . . . Slashing Weapon 3 | . . . . . . . . 2 . . . . 1 . . Piercing Weapon 2 | . . . . . . . . . . . . . 1 . 1 Special Melee Weapon . | . . . . . . . . . . . . . . . . Unidentified Prototypes 5 | . . . . . . . . 1 . . . 1 . 2 1 Parts Lost 53 | . . . . . . . . 2 2 . 2 17 5 2 23 Power 10 | . . . . . . . . 1 1 . . 4 1 . 3 Propulsion 8 | . . . . . . . . . . . . 4 . 1 3 Utility 16 | . . . . . . . . 1 1 . 2 2 1 1 8 Weapon 19 | . . . . . . . . . . . . 7 3 . 9 Highest Loss Streak 22 | . . . . . . . . 2 1 . 1 17 5 1 22 Average Slot Usage (%) 94 | . 99 100 100 100 99 99 99 99 97 100 99 91 79 90 75 Engine 4 | . 12 12 12 12 8 7 6 6 4 . . . . . . Core 1 | . . . . . . . . 3 5 5 4 . 2 . . Reactor 4 | . . . . . . . . . . 5 5 9 6 9 7 Treads 4 | . . . . . . . . . . . . 6 10 14 11 Leg 15 | . 24 25 25 25 25 28 25 22 20 20 20 13 . . . Device 12 | . . . . . 10 20 18 19 14 15 14 15 11 15 11 Storage 13 | . 19 25 25 25 16 14 18 16 15 15 15 8 4 4 8 Processor 16 | . 12 12 12 12 8 7 6 7 18 20 20 20 20 22 12 Protection 1 | . 5 . . . 5 . . . . . . . . 4 3 Energy Gun 2 | . 11 12 12 12 8 5 . . . . . . . . . Energy Cannon 1 | . . . . . . . . 2 2 . . . . 5 . Ballistic Gun 10 | . 12 12 12 12 15 14 12 9 12 18 20 14 1 5 6 Ballistic Cannon 3 | . . . . . . 1 11 7 . . . 4 . 5 8 Slashing Weapon 1 | . . . . . . . . 3 5 1 . . 3 . . Naked Turns . | . . . . . . . . . . . . . . . . Heaviest Build 175 | 17 25 25 25 25 34 49 62 86 71 68 71 175 126 106 103 Greatest Support 168 | 20 20 20 20 20 36 80 60 80 95 95 95 111 55 167 168 Greatest Overweight (x) 14 | . 5 1 1 1 1 . 1 1 . . . 5 2 . 14 Average Overweight (x) . | . . 1 1 1 . . . . . . . . 1 . . Largest Inventory Capacity 36 | 8 12 12 12 12 12 16 16 16 16 16 16 36 24 12 12 Average Capacity 13 | 8 10 12 12 12 12 12 16 16 16 16 16 21 11 8 11 Most Carried 24 | 7 12 12 12 12 12 14 15 16 16 16 16 24 13 9 8 Average Carried 11 | 6 8 12 11 11 10 11 12 14 15 16 16 16 4 7 6 Final Capacity 24 | 8 12 12 12 12 12 16 16 16 16 16 16 24 8 12 4 Final Carried 16 | 5 12 12 12 12 12 14 15 16 16 16 16 14 8 9 . Class Distribution -------------------- 44% | Scavenger-Gunner 22% | Hacker-Gunner 19% | Hacker-Mutant 7% | Hacker-Skirmisher 4% | Scavenger-Mutant Dominant Class ---------------- Hacker-Mutant | -10/Materials Hacker-Mutant | -10/Mines Hacker-Mutant | -10/Exiles Hacker-Mutant | -9/Mines Hacker-Skirmisher | -8/Materials Hacker-Skirmisher | -7/Factory Hacker-Gunner | -6/Factory Hacker-Gunner | -5/Factory Hacker-Gunner | -4/Factory Scavenger-Gunner | -4/Upper Caves Scavenger-Gunner | -4/Upper Caves Scavenger-Gunner | -4/Warlord Scavenger-Mutant | -3/Proximity Caves Scavenger-Gunner | -3/Research Scavenger-Gunner | -3/Quarantine Resources | -11 -10 -10 -10 -9 -8 -7 -6 -5 -4 -4 -4 -4 -3 -3 -3 ----------- Run | Scr Mat Min Exi Min Mat Fac Fac Fac Fac Upp Upp War Pro Res Qua Matter Collected 5311 | 215 200 . . 34 45 336 143 380 704 166 165 811 336 1594 182 Remotely . | . . . . . . . . . . . . . . . . Salvage Created 7676 | 89 263 . . 165 253 264 . 608 1037 85 495 811 292 2686 628 Parts 348 | 3 10 . . 6 9 16 . 22 71 4 19 32 12 125 19 Haulers Intercepted 5 | . 2 . . . 1 . . 1 1 . . . . . . Recyclers Shooed 2 | 1 . . . . . . . . . . . . . 1 . Parts Field Recycled . | . . . . . . . . . . . . . . . . Retrieved Matter . | . . . . . . . . . . . . . . . . Parts Self-Destructed . | . . . . . . . . . . . . . . . . Prevented . | . . . . . . . . . . . . . . . . Kills | -11 -10 -10 -10 -9 -8 -7 -6 -5 -4 -4 -4 -4 -3 -3 -3 ------- Run | Scr Mat Min Exi Min Mat Fac Fac Fac Fac Upp Upp War Pro Res Qua Combat Hostiles Destroyed 98 | . 2 . . 2 2 4 . 9 14 1 8 16 2 29 9 Melee 2 | . . . . . . . . . . . . . 2 . . Guns 56 | . 2 . . 2 2 3 . 6 14 1 8 4 . 8 6 Cannons 36 | . . . . . . 1 . 3 . . . 10 . 19 3 AOE 2 | . . . . . . . . . . . . 2 . . . Classes Destroyed 20 | 2 3 . . 1 2 2 . . 3 . 1 2 . 2 2 Worker 7 | . . . . . 1 2 . 1 . . . . . 3 . Builder 2 | . . . . . . 1 . . 1 . . . . . . Tunneler 3 | 1 . . . . . . . 1 . . . . . 1 . Hauler 5 | . 2 . . . 1 . . 1 1 . . . . . . Recycler 9 | 1 1 . . 1 1 . . . . . . . 1 4 . Minesweeper 1 | . . . . . . . . . . . 1 . . . . Operator 1 | . . . . . . . . . . . . . . 1 . Watcher 3 | . 1 . . . . . . . 1 . . . . 1 . Swarmer 11 | . . . . . . . . . 4 . 4 3 . . . Saboteur 1 | . . . . . . . . . . . . . . . 1 Grunt 35 | . 2 . . 1 1 . . 4 2 1 4 6 . 12 2 Brawler 6 | . . . . 1 . . . . . . . 2 . . 3 Duelist 2 | . . . . . . . . . 1 . . . . . 1 Researcher 1 | . . . . . . . . . . . . . . . 1 Sentry 11 | . . . . . 1 2 . 3 1 . . . 2 2 . Hunter 11 | . . . . . . . . . 2 . . 1 . 6 2 Programmer 18 | . . . . . . 2 . 2 4 . . 2 . 8 . Behemoth 1 | . . . . . . . . . . . . . . 1 . Striker 1 | . . . . . . . . . . . . 1 . . . Executioner 1 | . . . . . . . . . . . . 1 . . . Best Kill Streak 8 | 2 2 . . 3 4 4 . 5 7 1 4 3 3 8 5 Combat Bots Only 6 | . 2 . . 2 2 1 . 4 6 1 4 3 2 5 5 Max Kills in Single Turn 2 | 1 2 . . 1 1 1 . 1 1 1 2 2 2 2 1 Gunslinging 1 | . 1 . . . . . . . . . 1 . . . . Exploded 2 | . . . . . . . . . . . . 2 . . . Melee 1 | . . . . . . . . . . . . . 1 . . Uniques/NPCs Destroyed . | . . . . . . . . . . . . . . . . Combat | -11 -10 -10 -10 -9 -8 -7 -6 -5 -4 -4 -4 -4 -3 -3 -3 -------- Run | Scr Mat Min Exi Min Mat Fac Fac Fac Fac Upp Upp War Pro Res Qua Damage Taken 13337 | . 26 . . 18 134 137 . 842 1016 62 436 3144 1054 1109 5359 Core 1835 | . . . . . . . . 48 65 13 35 224 146 87 1217 Absorbed by Shields 936 | . . . . . . . . . . . . 111 . 825 . Reduced by Siege Mode 396 | . . . . . . . . . . . . . . . 396 Core Remaining (%) 93 | 100 . . . 100 100 100 100 95 . . . . 58 . . Volleys Fired 276 | 5 22 . . 6 10 14 . 28 34 7 13 23 33 60 21 Largest 4 | 2 2 . . 2 3 3 . 4 3 4 4 4 3 4 4 Hottest 294 | 60 70 . . 70 90 117 . 196 151 121 121 204 151 294 260 Shots Fired 799 | 10 44 . . 12 30 42 . 95 102 19 52 65 44 221 63 Gun 476 | 10 44 . . 12 30 35 . 43 99 16 52 13 11 84 27 Cannon 289 | . . . . . . 7 . 52 3 . . 50 9 133 35 Launcher 2 | . . . . . . . . . . . . 2 . . . Special 32 | . . . . . . . . . . 3 . . 24 4 1 Kinetic 640 | 5 22 . . 6 20 35 . 76 99 16 52 63 11 178 57 Thermal 70 | 5 22 . . 6 10 7 . 8 3 . . . 9 . . Explosive 1 | . . . . . . . . . . . . 1 . . . Electromagnetic 56 | . . . . . . . . 11 . . . 1 . 39 5 Robot Hit Streak 46 | 5 21 . . 17 19 23 . 37 35 12 25 14 46 32 17 Robot Miss Streak 3 | 1 1 . . . 1 3 . 3 2 1 1 2 1 2 1 Penetration Max 2 | . . . . . . . . . 1 . . 1 1 2 1 Secondary Targets 7 | . 1 . . . . . . . 2 . 4 . . . . Max Gunslinging Chain 1 | . 1 . . . . . . . 1 . 1 . . . . Shots Hit Robots 617 | 8 39 . . 10 24 32 . 74 79 16 34 44 52 161 44 Core Hits 312 | 3 11 . . 6 10 23 . 68 36 3 15 26 9 77 25 Critical Hits 89 | . . . . . . . . 1 5 . 2 21 4 45 11 Critical Kills 31 | . . . . . . . . . 1 . 2 7 1 16 4 Critical Parts Destroyed 47 | . . . . . . . . 1 4 . . 11 . 25 6 Melee Attacks 27 | . . . . . . . . 6 8 . . . 12 . 1 Impact . | . . . . . . . . . . . . . . . . Slashing 17 | . . . . . . . . 6 8 . . . 3 . . Piercing 10 | . . . . . . . . . . . . . 9 . 1 Sneak Attacks 2 | . . . . . . . . 1 . . . . 1 . . Combat Hostiles . | . . . . . . . . . . . . . . . . Follow-up Attacks 2 | . . . . . . . . . . . . . 2 . . Damage Inflicted 16424 | 92 500 . . 108 273 671 . 2375 1957 271 660 2548 1058 4591 1320 Guns 7637 | 92 500 . . 108 273 559 . 1173 1849 271 660 268 273 1172 439 Cannons 7088 | . . . . . . 112 . 1077 108 . . 1367 329 3244 851 Explosions 1072 | . . . . . . . . . . . . 897 . 175 . Melee 611 | . . . . . . . . 125 . . . . 456 . 30 Ramming 16 | . . . . . . . . . . . . 16 . . . Kinetic 12065 | 38 248 . . 41 150 564 . 1801 1849 271 660 1635 273 3408 1127 Thermal 1689 | 54 252 . . 67 123 107 . 302 108 . . 244 329 103 . Explosive 626 | . . . . . . . . . . . . 554 . 72 . Electromagnetic 1417 | . . . . . . . . 147 . . . 99 . 1008 163 Impact . | . . . . . . . . . . . . . . . . Slashing 195 | . . . . . . . . 125 . . . . 70 . . Piercing 416 | . . . . . . . . . . . . . 386 . 30 Highest Corruption 10 | . . . . . . . . 4 2 2 2 5 5 7 10 Average Corruption 3 | . . . . . . . . 3 1 2 2 2 5 3 7 Corruption Purged . | . . . . . . . . . . . . . . . . Effects 82 | . . . . . . . . 5 4 5 10 1 18 25 14 Message Errors 19 | . . . . . . . . 2 . 2 3 1 7 3 1 Matter Fused 13 | . . . . . . . . 1 . . . . 4 6 2 Heat Flow Errors 5 | . . . . . . . . . . . 1 . 1 2 1 Energy Discharges 11 | . . . . . . . . 1 . . 3 . 2 5 . Parts Rejected 2 | . . . . . . . . . . . . . . 1 1 Data Loss (minor) 9 | . . . . . . . . 1 1 3 2 . 1 1 . Data Loss (major) 1 | . . . . . . . . . . . . . . . 1 Targeting Errors 20 | . . . . . . . . . 3 . 1 . 3 6 7 Weapon Failures 2 | . . . . . . . . . . . . . . 1 1 Overload Shots . | . . . . . . . . . . . . . . . . Overflow Damage 269 | . . . . . . . . 92 . . . 49 . 114 14 Projectiles 131 | . . . . . . . . 37 . . . 20 . 60 14 Explosions 83 | . . . . . . . . . . . . 29 . 54 . Melee 55 | . . . . . . . . 55 . . . . . . . Knockbacks 33 | . . . . . . . . 3 . . . 8 . 20 2 Impact . | . . . . . . . . . . . . . . . . Kinetic 32 | . . . . . . . . 3 . . . 8 . 19 2 Secondary 1 | . . . . . . . . . . . . . . 1 . Self-Inflicted Damage 151 | . . . . . . . . . . . . 116 . 35 . Shots 4 | . . . . . . . . . . . . 3 . 1 . Rammed 2 | . . . . . . . . . . . . 2 . . . Targets Rammed 2 | . . . . . . . . . . . . 2 . . . Kicked . | . . . . . . . . . . . . . . . . Crushed . | . . . . . . . . . . . . . . . . Highest Temperature 778 | . 51 . . 45 . . . 520 5 7 15 328 14 778 125 Average Temperature 151 | . 16 . . 19 . . . 177 3 7 15 150 14 246 33 Received Heat Transfer 2820 | . 24 . . 18 99 54 . 405 51 21 99 603 279 177 990 Effects 25 | . . . . . . . . 5 . . . . . 20 . Shutdowns 6 | . . . . . . . . 2 . . . . . 4 . Energy Bleed 1 | . . . . . . . . . . . . . . 1 . Interference 13 | . . . . . . . . 2 . . . . . 11 . Matter Decay 1 | . . . . . . . . . . . . . . 1 . Short Circuit 1 | . . . . . . . . . . . . . . 1 . Damage (minor) 3 | . . . . . . . . 1 . . . . . 2 . Siege Activations 1 | . . . . . . . . . . . . . . . 1 Total Turns 17 | . . . . . . . . . . . . . . . 17 Longest Duration 17 | . . . . . . . . . . . . . . . 17 Robots Corrupted 2 | . . . . . . . . . . . . . . 2 . Combat Hostiles 2 | . . . . . . . . . . . . . . 2 . Parts Fried 6 | . . . . . . . . . . . . . . 6 . Impact Corruptions 1 | . . . . . . . . . . . . . . 1 . Robots Melted . | . . . . . . . . . . . . . . . . Combat Hostiles . | . . . . . . . . . . . . . . . . Parts Melted 3 | . 1 . . . . 1 . . . . . 1 . . . Heat Transferred 2330 | 125 740 . . 185 370 185 . 175 75 . . 200 225 50 . Parts Sabotaged 2 | . . . . . . . . . . . . 1 . . 1 Parts Stolen . | . . . . . . . . . . . . . . . . Parts Stripped . | . . . . . . . . . . . . . . . . Power Chain Reactions 3 | . . . . . . . . . . . . 1 . 2 . Missiles Intercepted . | . . . . . . . . . . . . . . . . Alert | -11 -10 -10 -10 -9 -8 -7 -6 -5 -4 -4 -4 -4 -3 -3 -3 ------- Run | Scr Mat Min Exi Min Mat Fac Fac Fac Fac Upp Upp War Pro Res Qua Peak Influence 1788 | 10 79 21 . 55 67 106 37 223 367 . . . . 379 1788 Average Influence 110 | 6 29 21 . 26 26 51 33 58 80 . . . . 106 1648 Maximum Alert Level 5 | . . . . . . . . 1 1 . . . . 1 5 Low Security (%) 88 | 100 100 100 . 100 100 100 100 96 89 . . . . 77 . Level 1 9 | . . . . . . . . 3 10 . . . . 22 . Level 2 . | . . . . . . . . . . . . . . . . Level 3 . | . . . . . . . . . . . . . . . . Level 4 . | . . . . . . . . . . . . . . . . Level 5 . | . . . . . . . . . . . . . . . . High Security . | . . . . . . . . . . . . . . . . Max Security 2 | . . . . . . . . . . . . . . . 99 Squads Dispatched 21 | . . . . . . 1 . 2 2 . 1 . . 8 7 Investigation 2 | . . . . . . . . 1 . . . . . 1 . Extermination 8 | . . . . . . 1 . 1 2 . . . . 4 . Reinforcement 4 | . . . . . . . . . . . . . . 3 1 Assault 7 | . . . . . . . . . . . 1 . . . 6 Garrison . | . . . . . . . . . . . . . . . . Intercept . | . . . . . . . . . . . . . . . . Construction Impeded 1 | . . . . . . . . . . . . . . 1 . Haulers Reinforced . | . . . . . . . . . . . . . . . . Stealth | -11 -10 -10 -10 -9 -8 -7 -6 -5 -4 -4 -4 -4 -3 -3 -3 --------- Run | Scr Mat Min Exi Min Mat Fac Fac Fac Fac Upp Upp War Pro Res Qua Distress Signals 9 | . 1 . . . . . . . 3 . . . 1 3 1 Communications Jammed 150 | . . . . . . . . . . . . 150 . . . Distress Signals 150 | . . . . . . . . . . . . 150 . . . Times Spotted 226 | . 8 . . 2 2 5 . 11 24 1 17 48 14 57 37 Peak Tracking Total 21 | . 4 . . 2 2 1 . 5 8 1 10 18 5 5 21 Tactical Retreats 11 | . . . . . . . . 1 3 . 2 3 . 1 1 Traps | -11 -10 -10 -10 -9 -8 -7 -6 -5 -4 -4 -4 -4 -3 -3 -3 ------- Run | Scr Mat Min Exi Min Mat Fac Fac Fac Fac Upp Upp War Pro Res Qua Traps Triggered 4 | . 4 . . . . . . . . . . . . . . Indirectly . | . . . . . . . . . . . . . . . . Trap Hack Attempts . | . . . . . . . . . . . . . . . . Triggered . | . . . . . . . . . . . . . . . . Disarmed . | . . . . . . . . . . . . . . . . Reprogrammed . | . . . . . . . . . . . . . . . . Reused . | . . . . . . . . . . . . . . . . Traps Extracted . | . . . . . . . . . . . . . . . . Installed . | . . . . . . . . . . . . . . . . Triggered 13 | . . . . . . . . . . 2 4 7 . . . Machines | -11 -10 -10 -10 -9 -8 -7 -6 -5 -4 -4 -4 -4 -3 -3 -3 ---------- Run | Scr Mat Min Exi Min Mat Fac Fac Fac Fac Upp Upp War Pro Res Qua Machines Disabled 10 | . . . . . . . . 1 . . . . 2 5 2 Max in Single Turn 2 | . . . . . . . . 1 . . . . 1 2 1 Garrison Access 1 | . . . . . . . . . 1 . . . . . . Machines Sabotaged . | . . . . . . . . . . . . . . . . Garrisons Compromised . | . . . . . . . . . . . . . . . . Overloaded Fab Kills 3 | . . . . . . . . . . . . . . 3 . Fab Network Shutdowns . | . . . . . . . . . . . . . . . . Hacking | -11 -10 -10 -10 -9 -8 -7 -6 -5 -4 -4 -4 -4 -3 -3 -3 --------- Run | Scr Mat Min Exi Min Mat Fac Fac Fac Fac Upp Upp War Pro Res Qua Machines Accessed 24 | . 5 . 5 . 1 1 1 1 5 . . 1 1 3 . Terminals 9 | . 5 . . . . . 1 1 . . . . 1 1 . Fabricators 2 | . . . . . . . . . . . . . . 2 . Repair Stations 3 | . . . . . . 1 . . 2 . . . . . . Recycling Units 2 | . . . . . 1 . . . 1 . . . . . . Scanalyzers 1 | . . . . . . . . . 1 . . . . . . Garrison Access 1 | . . . . . . . . . 1 . . . . . . Total Hacks 92 | . 10 . 49 . 2 1 3 3 16 . . 1 1 6 . Successful 75 | . 6 . 49 . 1 . 2 1 10 . . 1 1 4 . Failed 17 | . 4 . . . 1 1 1 2 6 . . . . 2 . Catastrophic . | . . . . . . . . . . . . . . . . Database Lockouts . | . . . . . . . . . . . . . . . . Manual 13 | . 7 . 1 . . . 3 . . . . 1 . 1 . Terminals 20 | . 10 . . . . . 3 3 . . . . 1 3 . Fabricators 3 | . . . . . . . . . . . . . . 3 . Repair Stations 10 | . . . . . . 1 . . 9 . . . . . . Recycling Units 3 | . . . . . 2 . . . 1 . . . . . . Scanalyzers 3 | . . . . . . . . . 3 . . . . . . Garrison Access 3 | . . . . . . . . . 3 . . . . . . Terminal Hacks 61 | . 5 . 49 . . . 2 1 . . . 1 1 2 . Record 49 | . . . 48 . . . . 1 . . . . . . . Robot Analysis 5 | . 3 . . . . . 2 . . . . . . . . Open Door 2 | . . . . . . . . . . . . 1 1 . . Level Access Points 1 | . 1 . . . . . . . . . . . . . . Branch Access Points 1 | . 1 . . . . . . . . . . . . . . Unreport Threat 2 | . . . . . . . . . . . . . . 2 . EX-Prototype ID Bank 1 | . . . 1 . . . . . . . . . . . . Fabricator Hacks 1 | . . . . . . . . . . . . . . 1 . Build 1 | . . . . . . . . . . . . . . 1 . Repair Station Hacks 6 | . . . . . . . . . 6 . . . . . . Scan Component 3 | . . . . . . . . . 3 . . . . . . Repair 3 | . . . . . . . . . 3 . . . . . . Recycling Unit Hacks 2 | . . . . . 1 . . . 1 . . . . . . Retrieve Components 2 | . . . . . 1 . . . 1 . . . . . . Scanalyzer 2 | . . . . . . . . . 2 . . . . . . Insert Component 1 | . . . . . . . . . 1 . . . . . . Analyze 1 | . . . . . . . . . 1 . . . . . . Garrison Access Hacks 1 | . . . . . . . . . 1 . . . . . . Seal Access 1 | . . . . . . . . . 1 . . . . . . Unauthorized Hacks 2 | . 1 . . . . . . . . . . . . 1 . Terminals 1 | . 1 . . . . . . . . . . . . . . Botnet 1 | . 1 . . . . . . . . . . . . . . Fabricators 1 | . . . . . . . . . . . . . . 1 . Overload 1 | . . . . . . . . . . . . . . 1 . Repair Stations . | . . . . . . . . . . . . . . . . Recycling Units . | . . . . . . . . . . . . . . . . Scanalyzers . | . . . . . . . . . . . . . . . . Garrison Access . | . . . . . . . . . . . . . . . . Data Cores Recovered 1 | . . . . . . . . . . . . . . 1 . Used 1 | . . . . . . . . . . . . . . 1 . Hacking Detections 9 | . 4 . . . . . 1 1 2 . . . . 1 . Full Trace Events 1 | . . . . . . . . 1 . . . . . . . Feedback Events . | . . . . . . . . . . . . . . . . Feedback Blocked . | . . . . . . . . . . . . . . . . Robot Schematics Acquired . | . . . . . . . . . . . . . . . . Robots Built . | . . . . . . . . . . . . . . . . Matter . | . . . . . . . . . . . . . . . . Time . | . . . . . . . . . . . . . . . . Total Robot Build Rating . | . . . . . . . . . . . . . . . . Part Schematics Acquired 1 | . . . . . . . . . 1 . . . . . . Parts Built . | . . . . . . . . . . . . . . . . Matter 256 | . . . . . . . . . . . . . . 256 . Time 42 | . . . . . . . . . . . . . . 42 . Total Part Build Rating . | . . . . . . . . . . . . . . . . Parts Repaired 3 | . . . . . . . . . 3 . . . . . . Time 110 | . . . . . . . . . 110 . . . . . . Parts Recycled . | . . . . . . . . . . . . . . . . Recycled Matter . | . . . . . . . . . . . . . . . . Retrieved Matter . | . . . . . . . . . . . . . . . . Retrieved Components 6 | . . . . . 3 . . . 3 . . . . . . Parts Scanalyzed 1 | . . . . . . . . . 1 . . . . . . Part Schematics Acquired 1 | . . . . . . . . . 1 . . . . . . Parts Damaged . | . . . . . . . . . . . . . . . . Bothacking | -11 -10 -10 -10 -9 -8 -7 -6 -5 -4 -4 -4 -4 -3 -3 -3 ------------ Run | Scr Mat Min Exi Min Mat Fac Fac Fac Fac Upp Upp War Pro Res Qua Used RIF Installer . | . . . . . . . . . . . . . . . . Robots Hacked . | . . . . . . . . . . . . . . . . Non-combat . | . . . . . . . . . . . . . . . . Combat . | . . . . . . . . . . . . . . . . Robot Hacks Applied . | . . . . . . . . . . . . . . . . Relay Couplers Released . | . . . . . . . . . . . . . . . . Robots Rewired 11 | . . . . . . . . . . . . . 11 . . Allies Hacked 3 | . . . . . . . . . . . . . . 3 . Hacks Repelled . | . . . . . . . . . . . . . . . . Allies | -11 -10 -10 -10 -9 -8 -7 -6 -5 -4 -4 -4 -4 -3 -3 -3 -------- Run | Scr Mat Min Exi Min Mat Fac Fac Fac Fac Upp Upp War Pro Res Qua Total Allies 15 | . . . . . . . . . . . . . 12 3 . Largest Group 10 | . . . . . . . . . . . . . 10 5 . Highest-Rated Group 458 | . . . . . . . . . . . . . 458 252 . Highest-Rated Ally 64 | . . . . . . . . . . . . . 64 64 . Total Orders 2 | . . . . . . . 2 . . . . . . . . ROAM 1 | . . . . . . . 1 . . . . . . . . EXPLORE 1 | . . . . . . . 1 . . . . . . . . Ally Attacks 145 | . . . . . . . . . . . . . 105 40 . Total Damage 4406 | . . . . . . . . . . . . . 3027 1379 . Kills 15 | . . . . . . . . . . . . . 9 6 . Allies Corrupted 1 | . . . . . . . . . . . . . . 1 . Allies Melted . | . . . . . . . . . . . . . . . . Field Lobotomies 4 | . . . . . . . . . . . . . 1 3 . Intel | -11 -10 -10 -10 -9 -8 -7 -6 -5 -4 -4 -4 -4 -3 -3 -3 ------- Run | Scr Mat Min Exi Min Mat Fac Fac Fac Fac Upp Upp War Pro Res Qua Robot Analysis Total 5 | . 3 . . . . . 2 . . . . . . . . Derelict Logs Recovered 1 | . . . . 1 . . . . . . . . . . . Drone Launches 2 | . . . . . . . 2 . . . . . . . . Drone Recoveries . | . . . . . . . . . . . . . . . . Exploration | -11 -10 -10 -10 -9 -8 -7 -6 -5 -4 -4 -4 -4 -3 -3 -3 ------------- Run | Scr Mat Min Exi Min Mat Fac Fac Fac Fac Upp Upp War Pro Res Qua Turns Passed 9664 | 39 713 86 458 571 225 516 391 929 908 388 688 949 537 2083 183 Spaces Moved 5508 | 17 457 58 305 334 123 341 247 502 489 297 507 551 196 1027 57 Core 3 | . 2 . . . . . . . . . . . . . 1 Treads 1400 | . . . . . . . . . . . . 121 196 1027 56 Legs 4105 | 17 455 58 305 334 123 341 247 502 489 297 507 430 . . . Wheels . | . . . . . . . . . . . . . . . . Hover . | . . . . . . . . . . . . . . . . Flight . | . . . . . . . . . . . . . . . . Fastest Speed 120 | 120 120 150 150 150 120 120 130 127 120 120 120 120 165 152 155 Average Speed 141 | 120 136 150 150 150 136 124 131 131 122 120 120 148 198 159 168 Slowest Speed 750 | 120 300 150 150 150 150 130 160 160 127 120 120 360 225 163 750 Overloaded Moves . | . . . . . . . . . . . . . . . . Propulsion Burnouts . | . . . . . . . . . . . . . . . . Robots Hopped . | . . . . . . . . . . . . . . . . Cave-ins Triggered . | . . . . . . . . . . . . . . . . Exploration Rate (%) 33 | 3 61 12 68 80 15 8 19 14 13 58 59 62 23 30 10 Regions Visited 15 Branch Regions 8 Pre-discovered Areas 3 | . . 1 1 1 . . . . . . . . . . . Known Exits Taken 15 | 1 1 1 1 1 1 1 1 1 1 1 1 1 1 1 . Unknown Exits Taken . | . . . . . . . . . . . . . . . . Scrap Searched 3 | . . . . . . . . . . . 3 . . . . Spaces Dug 14 | . . . . . . . . 5 8 . . . . 1 . Terrain Destroyed 128 | . . . . . . 1 . 6 14 2 9 38 . 43 15 Melee 13 | . . . . . . . . 5 8 . . . . . . Projectile 78 | . . . . . . 1 . 1 6 2 9 17 . 27 15 AOE 37 | . . . . . . . . . . . . 21 . 16 . Actions | -11 -10 -10 -10 -9 -8 -7 -6 -5 -4 -4 -4 -4 -3 -3 -3 --------- Run | Scr Mat Min Exi Min Mat Fac Fac Fac Fac Upp Upp War Pro Res Qua Total 6770 | 25 499 57 306 393 156 403 313 693 711 316 555 630 290 1322 101 Wait 640 | . . . . 52 10 16 57 112 139 8 28 10 29 172 7 Move 5494 | 16 456 57 304 333 122 340 246 501 488 296 506 551 195 1026 57 Hop . | . . . . . . . . . . . . . . . . Pick Up 50 | . 7 . 1 1 2 5 4 6 7 . 1 4 5 7 . Fast Attach 57 | . 7 . . . 2 2 1 9 5 . 1 10 7 11 2 Attach 45 | . 2 . . . 4 1 2 3 2 . . 10 10 2 9 Detach 2 | . . . . . . . . . . . . 2 . . . Swap 82 | 2 4 . . . 3 12 1 11 12 4 2 7 1 23 . Drop 97 | 2 1 . 1 1 3 13 2 17 16 1 4 12 1 21 2 Fire 276 | 5 22 . . 6 10 14 . 28 34 7 13 23 33 60 21 Melee 24 | . . . . . . . . 6 8 . . . 9 . 1 Ram 1 | . . . . . . . . . . . . 1 . . . Kick . | . . . . . . . . . . . . . . . . Crush . | . . . . . . . . . . . . . . . . Escape Stasis 2 | . . . . . . . . . . . . . . . 2 Rewire . | . . . . . . . . . . . . . . . . Trap . | . . . . . . . . . . . . . . . . Miscellaneous . | . . . . . . . . . . . . . . . . Route ------- -11/Scrapyard -10/Materials (discovered 5 exits: *Mat x3 / *Min x2) -10/Mines -10/Exiles -9/Mines -8/Materials -7/Factory -6/Factory (discovered 3 exits: *Fac / *Low x2) -5/Factory -4/Factory -4/Upper Caves -4/Upper Caves -4/Warlord -3/Proximity Caves -3/Research -3/Quarantine History --------- Turn | Location | Event 5 | -11/Scrapyard | Identified exit to Materials 5 | -11/Scrapyard | Discovered exit to Materials (range 3) 40 | -11/Scrapyard | Entered Materials 40 | -10/Materials | Evolved 1 slot: Utility x1 67 | -10/Materials | Identified exit to Mines 67 | -10/Materials | Discovered exit to Mines (range 15) 257 | -10/Materials | Identified exit to Materials 257 | -10/Materials | Discovered exit to Materials (range 7) 322 | -10/Materials | Build established: Hacker-Mutant 753 | -10/Materials | Entered Mines 763 | -10/Mines | Learned location of Storage (-8) 831 | -10/Mines | Deemed a non-threat by the Exiles lab entrance 831 | -10/Mines | Identified exit to Exiles 831 | -10/Mines | Discovered exit to Exiles (range 5) 839 | -10/Mines | Entered Exiles 877 | -10/Exiles | Met 8R-AWN 902 | -10/Exiles | Met EX-HEX 943 | -10/Exiles | Met EX-BIN 965 | -10/Exiles | Aligned with FarCom system 967 | -10/Exiles | Given EX-Vault access code 1049 | -10/Exiles | Opened EX-Vault 1059 | -10/Exiles | Found Field Lobotomy Kit 1093 | -10/Exiles | Warned to stay clear of 0b10 Research branches 1132 | -10/Exiles | Met EX-DEC 1174 | -10/Exiles | Learned location of Zion (-7) 1285 | -10/Exiles | Identified exit to Mines 1285 | -10/Exiles | Discovered exit to Mines (range 10) 1297 | -10/Exiles | Left Exiles lab with Field Lobotomy Kit 1297 | -10/Exiles | Entered Mines 1847 | -9/Mines | Identified exit to Materials 1847 | -9/Mines | Discovered exit to Materials (range 14) 1868 | -9/Mines | Entered Materials 1868 | -8/Materials | Evolved 4 slots: Propulsion x1, Utility x2, Weapon x1 2044 | -8/Materials | Identified exit to Factory 2044 | -8/Materials | Discovered exit to Factory (range 14) 2093 | -8/Materials | Entered Factory 2093 | -7/Factory | Evolved 2 slots: Propulsion x1, Utility x1 2161 | -7/Factory | Build established: Hacker-Skirmisher 2551 | -7/Factory | Identified exit to Factory 2551 | -7/Factory | Discovered exit to Factory (range 9) 2609 | -7/Factory | Entered another Factory area 2609 | -6/Factory | Evolved 2 slots: Utility x1, Weapon x1 2828 | -6/Factory | Identified exit to Factory 2828 | -6/Factory | Discovered exit to Factory (range 13) 2859 | -6/Factory | Identified exit to Lower Caves 2859 | -6/Factory | Discovered exit to Lower Caves (range 48) 2899 | -6/Factory | Discovered exit to Lower Caves (range 150) 2906 | -6/Factory | Build established: Hacker-Gunner 3000 | -6/Factory | Entered another Factory area 3000 | -5/Factory | Evolved 2 slots: Power x1, Utility x1 3675 | -5/Factory | Identified exit to Factory 3675 | -5/Factory | Discovered exit to Factory (range 7) 3929 | -5/Factory | Entered another Factory area 3929 | -4/Factory | Evolved 2 slots: Utility x2 4192 | -4/Factory | Repaired Kinecellerator 4419 | -4/Factory | Spotted B-86 Titan 4564 | -4/Factory | Repaired Imp. Titanium Leg 4608 | -4/Factory | Repaired Imp. Titanium Leg 4687 | -4/Factory | Identified exit to Upper Caves 4687 | -4/Factory | Discovered exit to Upper Caves (range 10) 4837 | -4/Factory | Entered Upper Caves 5045 | -4/Upper Caves | Build established: Scavenger-Gunner 5220 | -4/Upper Caves | Identified exit to Upper Caves 5220 | -4/Upper Caves | Discovered exit to Upper Caves (range 3) 5225 | -4/Upper Caves | Entered another Upper Caves area 5894 | -4/Upper Caves | Identified exit to Warlord 5894 | -4/Upper Caves | Discovered exit to Warlord (range 11) 5896 | -4/Upper Caves | Attracted the attention of an 0b10 outpost 5913 | -4/Upper Caves | Entered Warlord 5966 | -4/Warlord | Identified exit to Proximity Caves 5966 | -4/Warlord | Discovered exit to Proximity Caves (range 14) 6032 | -4/Warlord | System corruption cleaned by Quarantine Array 6121 | -4/Warlord | Met Warlord 6146 | -4/Warlord | Warlord's base attacked by MAIN.C 6489 | -4/Warlord | Spotted Striker 6496 | -4/Warlord | Warlord forces counterattacked 6608 | -4/Warlord | Spotted Executioner 6623 | -4/Warlord | Destroyed Executioner 6676 | -4/Warlord | Found Prototype Ballistic Cannon 6676 | -4/Warlord | Identified Hvy. Autocannon 6746 | -4/Warlord | Spotted Striker 6765 | -4/Warlord | Spotted Striker 6795 | -4/Warlord | Destroyed Striker 6847 | -4/Warlord | Spotted Striker 6847 | -4/Warlord | Spotted Striker 6862 | -4/Warlord | Entered Proximity Caves 6892 | -3/Proximity Caves | Lost 17 parts (4p4n2u7w) 6904 | -3/Proximity Caves | Snuck into a huge 0b10 base via the rear entrance 7006 | -3/Proximity Caves | Assimilated Y-72 Warden with FLK Orb 7013 | -3/Proximity Caves | Lost 5 parts (1p1u3w) 7154 | -3/Proximity Caves | Identified exit to Research 7154 | -3/Proximity Caves | Discovered exit to Research (range 9) 7399 | -3/Proximity Caves | Entered Research 7399 | -3/Research | Accompanied by 5 allies 7399 | -3/Research | Evolved 2 slots: Propulsion x1, Utility x1 7848 | -3/Research | Fabricated Imp. Heavy Siege Treads? 7966 | -3/Research | Assimilated Y-72 Warden with FLK Orb 8074 | -3/Research | Assimilated M-28 Smith with FLK Orb 8830 | -3/Research | Spotted B-86 Titan 8858 | -3/Research | Destroyed B-86 Titan 8916 | -3/Research | Assimilated Y-72 Warden with FLK Orb 9217 | -3/Research | Found Prototype Launcher 9218 | -3/Research | Identified Tesla Bomb Launcher 9396 | -3/Research | Identified exit to Quarantine 9396 | -3/Research | Discovered exit to Quarantine (range 20) 9482 | -3/Research | Entered Quarantine 9483 | -3/Quarantine | Maximum security lockdown engaged 9502 | -3/Quarantine | Scanned by Researcher 9511 | -3/Quarantine | Found Alien Artifact 9511 | -3/Quarantine | Identified Matter Drive 9649 | -3/Quarantine | System corruption reached 10% 9656 | -3/Quarantine | Core integrity fell below 50% 9663 | -3/Quarantine | Core integrity fell below 20% 9665 | -3/Quarantine | Destroyed by G-73 Enforcer with Phase Gun Last Messages --------------- 09653_ E-15 Imp unfolds itself. 09654_ HERF Cannon destroyed. 09654_ Jacked L-61 Swordsman... 09656_ System corrupted: Matter fused (-6). 09656_ Slug penetrates B-74 Champion. 09656_ B-74 Champion destroyed. 09656_ Slug penetrates G-73 Enforcer. 09657_ Acquired 67 matter. 09659_ L-61 Swordsman destroyed. 09659_ Slug penetrates G-67 Veteran. 09659_ Remote Datajack destroyed. 09659_ Railgun destroyed. 09662_ C-30 ARC bursts open, deploying its payload. 09662_ P-80 Master unfolds itself. 09662_ H-77 Assassin unfolds itself. 09662_ M-36 Artificer unfolds itself. 09662_ Slug penetrates G-67 Veteran. 09662_ Destroyed Electrolaser. 09662_ Med. Storage Unit destroyed. 09664_ Com. Mass Driver destroyed. Map ----- +----------------------------------------------------+ | | | | | | | | | | | | | | | | | ?????????? #?????????????????????????????????????? | | ###???????? #???????????????????????????????????? | | #"##???#?### ##?????????????????????????????????? | | = "##### # #????????????????????????????????? | | """""""""""";;;#####???????????????????????????? | | +???????????????????????????? | | """"""""" #???????????????????????????? | | ######### #???????????????????????????? | | "##???????# #?###+#####?????????????????? | | "#####????#+##### ###! # !?????????????????? | | #??????????# [%;; %; ??h?e?????????????? | | " #??????????# ! =* = %%/???????????????????? | | " #??????????# ###=%;g%! %#???????????????????? | | #??????????# #?#=%[ /ghg##??????????????????? | | " #??????????# #?##!;ggg;;;##?????????????????? | | """ #??????????# #??#gpg/g!! !#?????????????????? | | #??????????# #??# =l!lgg #?????????????????? | | #??????????# #??# l@lmgg #?????????????????? | | +######+####????# #??# ! T #?????????????????? | | #????# #??###########?????????????????? | | #????# ???????????????????????????????? | | #????? ???????????????????????????????? | | #????? ???????????????????????????????? | | ####### #????? ???????????????????????????????? | | ???????? #????? ???????????????????????????????? | | ????????? #????? ???????????????????????????????? | | ??????????? ???? ???????????????????????????????? | | ???????????? ??? ???????????????????????????????? | | ????????????? ? ???????????????????????????????? | | ??????????????? ???????????????????????????????? | | ????????????????##???????????????????????????????? | | ?????????????????????????????????????????????????? | | ???????????????????????????????Y?????????????????? | | ?????????????????????????????????????????????????? | | ???????????????????????????????YY????????????????? | | ????????????????????????????????Y????????????????? | | ?????????????????????????????????????????????????? | | ?????????????????????????????????????????????????? | | ?????????????????????????????????????????????????? | | ?????????????????????????????????????????????????? | | ?????????????????????????????????????????????????? | | ?????????????????????????????????????????????????? | +----------------------------------------------------+ Best States ------------- Heat Dissipation 115 Energy Generation 43 Energy Capacity 580 Matter Stores 300 Matter Capacity 300 Sight Range 23 Terrain Scan Density 10 Jamming Range 16 Additional Mass Support 6 Base Temperature (-) 200 Armor Coverage 200 Resistance: KI 35 Resistance: TH 35 Resistance: EX 85 Resistance: EM 35 Resistance: I 35 Resistance: S 35 Resistance: P 35 Weapon Shielding 66 Evasion (%) 40 Targeting Accuracy 8 Target Analysis 8 Core Analysis 10 Recoil Reduction 5 Matter Filtering 30 Kinecelleration 30 Salvage Targeting 3 Offensive Hacking 20 Item Schematics ----------------- Arm. Huge Wheel | -4/Factory | Scanalyzed Robot Schematics ------------------ None Fabricated ------------ Nothing Alien Tech Used ----------------- Matter Drive Achievements -------------- Charge!!! Tank Challenges ------------ None Game ------ Seed HardenedDamperImmobilizer Manual? 0 Play Time 01:57:28 Cumulative 85.1 hours Start 2020.08.28 @ 00:46:49 End 2020.08.28 @ 02:43:22 Sessions 1 Manual Loads 0 Difficulty Explorer Special Mode None Game No. 143 Rogue 140 Adventurer 0 Explorer 3 Win Type - Total 0 Types 0/0/0/0/0/0/0 Lore% 35 Gallery% 51 Achievement% 38 Wizard Run 0 Options --------- ASCII 0 Keyboard 0 Movement Mouse Keybinds 0 Fullscreen 2 Font 18/SmallcapsGlow Map View 76x50 Tactical HUD 1 Map Filters NONE Filters NONE Steam 1 RUN: d6e3efde-a12d-4ac2-a302-cb31fef9f4af